[Event "*** SCC Grand Prix: Titled Tuesday Blitz"]
[Site "Chess.com"]
[Date "2020.08.04"]
[Round "7"]
[White "Evgeny81"]
[Black "SantoBlue"]
[Result "0-1"]
[WhiteElo "2763"]
[BlackElo "2926"]
[TimeControl "180+1"]
[EndTime "15:00:52 PDT"]
[Termination "SantoBlue won by resignation"]

1. d4 {[%clk 0:03:00.9]} 1... d6 {[%clk 0:03:00.9]} 2. Nf3 {[%clk 0:03:00.2]}
2... c5 {[%clk 0:03:01.8]} 3. dxc5 {[%clk 0:02:59.9]} 3... Qa5+ {[%clk
0:03:02.4]} 4. Nc3 {[%clk 0:02:59.3]} 4... Qxc5 {[%clk 0:03:02.8]} 5. e4 {[%clk
0:02:59.6]} 5... Nf6 {[%clk 0:03:03.4]} 6. Be3 {[%clk 0:02:59.8]} 6... Qa5
{[%clk 0:03:04]} 7. Bd3 {[%clk 0:02:59.2]} 7... g6 {[%clk 0:03:03.4]} 8. O-O
{[%clk 0:02:56.6]} 8... Bg7 {[%clk 0:03:03.9]} 9. e5 {[%clk 0:02:56.4]} 9...
dxe5 {[%clk 0:03:00.4]} 10. Bb5+ {[%clk 0:02:43.3]} 10... Bd7 {[%clk 0:02:53.2]}
11. a4 {[%clk 0:02:43.4]} 11... Nc6 {[%clk 0:02:41.4]} 12. Bc5 {[%clk
0:02:39.7]} 12... a6 {[%clk 0:02:20.3]} 13. Bxc6 {[%clk 0:02:11.5]} 13... Bxc6
{[%clk 0:02:21.2]} 14. b4 {[%clk 0:01:55.3]} 14... Qc7 {[%clk 0:02:21]} 15. a5
{[%clk 0:01:50.7]} 15... Nd7 {[%clk 0:02:00.6]} 16. Nd5 {[%clk 0:01:48.5]} 16...
Bxd5 {[%clk 0:02:00.2]} 17. Qxd5 {[%clk 0:01:49.4]} 17... Nxc5 {[%clk
0:01:57.6]} 18. bxc5 {[%clk 0:01:47.8]} 18... e4 {[%clk 0:01:57.2]} 19. Ng5
{[%clk 0:01:42]} 19... e6 {[%clk 0:01:51.3]} 20. Qxe4 {[%clk 0:01:34.5]} 20...
Bxa1 {[%clk 0:01:45]} 21. Rxa1 {[%clk 0:01:34.2]} 21... Qxc5 {[%clk 0:01:35.1]}
22. Qa4+ {[%clk 0:01:21.8]} 22... Kf8 {[%clk 0:01:20.9]} 23. Ne4 {[%clk
0:01:16.9]} 23... Qe5 {[%clk 0:01:17.4]} 24. f4 {[%clk 0:01:14.2]} 24... Qxf4
{[%clk 0:00:58.9]} 25. Rf1 {[%clk 0:01:06.6]} 25... Qe3+ {[%clk 0:00:57.2]} 26.
Kh1 {[%clk 0:01:06.8]} 26... Rd8 {[%clk 0:00:48.6]} 27. Qa1 {[%clk 0:00:45.9]}
27... Qd4 {[%clk 0:00:40.8]} 28. Qa3+ {[%clk 0:00:34.2]} 28... Kg7 {[%clk
0:00:41]} 29. Qe7 {[%clk 0:00:34.3]} 29... Qxe4 {[%clk 0:00:31.1]} 30. Qf6+
{[%clk 0:00:30.6]} 30... Kh6 {[%clk 0:00:28.7]} 31. h4 {[%clk 0:00:31.2]} 31...
Qg4 {[%clk 0:00:13.5]} 32. Rf4 {[%clk 0:00:30.4]} 32... Qg3 {[%clk 0:00:12.1]}
33. Rf1 {[%clk 0:00:22.4]} 33... Rd2 {[%clk 0:00:12.2]} 34. Rg1 {[%clk
0:00:20.3]} 34... Rhd8 {[%clk 0:00:12.7]} 0-1

[Event "*** SCC Grand Prix: Titled Tuesday Blitz"]
[Site "Chess.com"]
[Date "2020.08.04"]
[Round "7"]
[White "Bigfish1995"]
[Black "rasmussvane"]
[Result "0-1"]
[WhiteElo "2970"]
[BlackElo "2876"]
[TimeControl "180+1"]
[EndTime "15:00:52 PDT"]
[Termination "rasmussvane won on time"]

1. e4 {[%clk 0:02:54.9]} 1... c6 {[%clk 0:02:59.3]} 2. d4 {[%clk 0:02:54.1]}
2... d5 {[%clk 0:03:00.2]} 3. f3 {[%clk 0:02:52.7]} 3... e6 {[%clk 0:03:00.1]}
4. Be3 {[%clk 0:02:52.2]} 4... Qb6 {[%clk 0:02:45.4]} 5. Qc1 {[%clk 0:02:50]}
5... c5 {[%clk 0:02:43.4]} 6. c3 {[%clk 0:02:40.6]} 6... Nc6 {[%clk 0:02:31.9]}
7. Ne2 {[%clk 0:02:30]} 7... dxe4 {[%clk 0:02:31.5]} 8. fxe4 {[%clk 0:02:26.2]}
8... Nf6 {[%clk 0:02:31.9]} 9. Nd2 {[%clk 0:02:23.4]} 9... Bd7 {[%clk
0:02:27.7]} 10. Nc4 {[%clk 0:02:10.3]} 10... Qd8 {[%clk 0:02:22.7]} 11. dxc5
{[%clk 0:01:49.7]} 11... Nxe4 {[%clk 0:02:23.1]} 12. b4 {[%clk 0:01:49.7]} 12...
Be7 {[%clk 0:02:21.9]} 13. g3 {[%clk 0:01:34.1]} 13... e5 {[%clk 0:01:58.3]} 14.
Bg2 {[%clk 0:01:33.8]} 14... Bf5 {[%clk 0:01:49.2]} 15. O-O {[%clk 0:01:26.8]}
15... Bg6 {[%clk 0:01:49.5]} 16. Rd1 {[%clk 0:00:48.4]} 16... Qc7 {[%clk
0:01:38.7]} 17. b5 {[%clk 0:00:46.4]} 17... Na5 {[%clk 0:01:36.9]} 18. b6 {[%clk
0:00:39.2]} 18... axb6 {[%clk 0:01:37.8]} 19. Nxb6 {[%clk 0:00:39.8]} 19... Rd8
{[%clk 0:01:05.3]} 20. Nd5 {[%clk 0:00:39.6]} 20... Qc6 {[%clk 0:01:05.5]} 21.
Nxe7 {[%clk 0:00:24.1]} 21... Kxe7 {[%clk 0:01:06.4]} 22. g4 {[%clk 0:00:22.4]}
22... Nc4 {[%clk 0:01:03.9]} 23. Bf2 {[%clk 0:00:17.7]} 23... Qe6 {[%clk
0:00:59.2]} 24. h3 {[%clk 0:00:10.6]} 24... h5 {[%clk 0:00:55.3]} 25. gxh5
{[%clk 0:00:09.5]} 25... Bxh5 {[%clk 0:00:52.2]} 26. Re1 {[%clk 0:00:09.1]}
26... Nxf2 {[%clk 0:00:51.1]} 27. Kxf2 {[%clk 0:00:09.3]} 27... Rd2 {[%clk
0:00:43]} 28. Rb1 {[%clk 0:00:08.7]} 28... Qf5+ {[%clk 0:00:30.1]} 29. Kg1
{[%clk 0:00:09]} 29... Bxe2 {[%clk 0:00:30]} 30. Rxb7+ {[%clk 0:00:08.8]} 30...
Kf6 {[%clk 0:00:29.4]} 31. c6 {[%clk 0:00:03.7]} 31... Bf3 {[%clk 0:00:21.8]}
32. Bxf3 {[%clk 0:00:02.3]} 32... Qxf3 {[%clk 0:00:22.7]} 0-1

[Event "*** SCC Grand Prix: Titled Tuesday Blitz"]
[Site "Chess.com"]
[Date "2020.08.04"]
[Round "7"]
[White "Tactictic"]
[Black "harkerchess"]
[Result "0-1"]
[WhiteElo "2372"]
[BlackElo "2144"]
[TimeControl "180+1"]
[EndTime "15:00:56 PDT"]
[Termination "harkerchess won by checkmate"]

1. e4 {[%clk 0:03:00.9]} 1... c6 {[%clk 0:02:59.6]} 2. d4 {[%clk 0:03:00.2]}
2... d5 {[%clk 0:02:58.5]} 3. e5 {[%clk 0:03:00.5]} 3... c5 {[%clk 0:02:54.4]}
4. dxc5 {[%clk 0:02:59.8]} 4... e6 {[%clk 0:02:53.5]} 5. a3 {[%clk 0:02:59.2]}
5... Bxc5 {[%clk 0:02:47]} 6. b4 {[%clk 0:02:59.3]} 6... Bb6 {[%clk 0:02:44.4]}
7. Nf3 {[%clk 0:02:58.5]} 7... Ne7 {[%clk 0:02:44]} 8. Bb2 {[%clk 0:02:56.9]}
8... Nbc6 {[%clk 0:02:43.5]} 9. Bd3 {[%clk 0:02:57.1]} 9... O-O {[%clk
0:02:43.1]} 10. O-O {[%clk 0:02:57.5]} 10... h6 {[%clk 0:02:42.8]} 11. c4 {[%clk
0:02:52.6]} 11... Bc7 {[%clk 0:02:39.5]} 12. Nbd2 {[%clk 0:02:47.9]} 12... b6
{[%clk 0:02:38.6]} 13. cxd5 {[%clk 0:02:41.8]} 13... Nxd5 {[%clk 0:02:37.9]} 14.
Ne4 {[%clk 0:02:33.7]} 14... Bb7 {[%clk 0:02:30.9]} 15. Rc1 {[%clk 0:02:32.4]}
15... Qe7 {[%clk 0:02:15.3]} 16. Qc2 {[%clk 0:02:25.1]} 16... Rac8 {[%clk
0:02:10.9]} 17. Qb1 {[%clk 0:02:23.9]} 17... Rfd8 {[%clk 0:02:02.1]} 18. Rfd1
{[%clk 0:02:22.4]} 18... Bb8 {[%clk 0:01:58.6]} 19. Bc4 {[%clk 0:02:03.6]} 19...
Nf4 {[%clk 0:01:51.8]} 20. g3 {[%clk 0:01:56.4]} 20... Ng6 {[%clk 0:01:34.4]}
21. Qa1 {[%clk 0:01:27.2]} 21... Rxd1+ {[%clk 0:01:09.8]} 22. Rxd1 {[%clk
0:01:25.6]} 22... Rd8 {[%clk 0:01:10.7]} 23. h4 {[%clk 0:01:14.1]} 23... Rxd1+
{[%clk 0:00:46.3]} 24. Qxd1 {[%clk 0:01:15]} 24... Qd8 {[%clk 0:00:45.8]} 25.
Nd6 {[%clk 0:01:00.2]} 25... Ngxe5 {[%clk 0:00:22]} 26. Nxe5 {[%clk 0:00:58.6]}
26... Bxd6 {[%clk 0:00:20.9]} 27. Nxf7 {[%clk 0:00:35.3]} 27... Kxf7 {[%clk
0:00:20]} 28. Qg4 {[%clk 0:00:33.9]} 28... Qe7 {[%clk 0:00:15.6]} 29. Qxg7+
{[%clk 0:00:22]} 29... Ke8 {[%clk 0:00:15.8]} 30. Qh8+ {[%clk 0:00:21.9]} 30...
Kd7 {[%clk 0:00:16]} 31. Bf6 {[%clk 0:00:20.5]} 31... Qe8 {[%clk 0:00:14.9]} 32.
Qg7+ {[%clk 0:00:18.2]} 32... Kc8 {[%clk 0:00:15]} 33. Qxh6 {[%clk 0:00:14]}
33... Nb8 {[%clk 0:00:13.6]} 34. Bc3 {[%clk 0:00:12.1]} 34... Qc6 {[%clk
0:00:12.1]} 35. Qxe6+ {[%clk 0:00:11.3]} 35... Nd7 {[%clk 0:00:11.4]} 36. b5
{[%clk 0:00:11]} 36... Qg2# {[%clk 0:00:10.7]} 0-1

[Event "*** SCC Grand Prix: Titled Tuesday Blitz"]
[Site "Chess.com"]
[Date "2020.08.04"]
[Round "7"]
[White "binbin239"]
[Black "rynos0411"]
[Result "1-0"]
[WhiteElo "2543"]
[BlackElo "2370"]
[TimeControl "180+1"]
[EndTime "15:00:58 PDT"]
[Termination "binbin239 won on time"]

1. d4 {[%clk 0:03:00.9]} 1... Nf6 {[%clk 0:02:58.2]} 2. c4 {[%clk 0:03:00.5]}
2... e6 {[%clk 0:02:58.5]} 3. Nf3 {[%clk 0:03:00.1]} 3... d5 {[%clk 0:02:57.8]}
4. g3 {[%clk 0:03:00.1]} 4... Bb4+ {[%clk 0:02:57.5]} 5. Bd2 {[%clk 0:02:59.5]}
5... Be7 {[%clk 0:02:57.5]} 6. Bg2 {[%clk 0:02:59.1]} 6... O-O {[%clk
0:02:57.9]} 7. O-O {[%clk 0:02:59.6]} 7... dxc4 {[%clk 0:02:57.3]} 8. Qc2 {[%clk
0:02:56]} 8... a6 {[%clk 0:02:54.1]} 9. Qxc4 {[%clk 0:02:55.4]} 9... b5 {[%clk
0:02:54.2]} 10. Qc2 {[%clk 0:02:55.1]} 10... Bb7 {[%clk 0:02:54.7]} 11. Rd1
{[%clk 0:02:52.7]} 11... Nbd7 {[%clk 0:02:54.5]} 12. Ba5 {[%clk 0:02:51]} 12...
Rc8 {[%clk 0:02:53.7]} 13. Ne5 {[%clk 0:02:46.8]} 13... Bxg2 {[%clk 0:02:45.8]}
14. Kxg2 {[%clk 0:02:46.3]} 14... Qe8 {[%clk 0:02:46.3]} 15. Nc3 {[%clk
0:02:44.1]} 15... c5 {[%clk 0:02:44]} 16. Nxd7 {[%clk 0:02:43]} 16... Nxd7
{[%clk 0:02:41.9]} 17. d5 {[%clk 0:02:41.3]} 17... b4 {[%clk 0:02:34]} 18. dxe6
{[%clk 0:02:38]} 18... fxe6 {[%clk 0:02:31.8]} 19. Ne4 {[%clk 0:02:32.2]} 19...
Nf6 {[%clk 0:02:31.6]} 20. Nxf6+ {[%clk 0:02:13.1]} 20... Bxf6 {[%clk
0:02:32.5]} 21. a3 {[%clk 0:02:12.6]} 21... Qc6+ {[%clk 0:02:26]} 22. Kg1 {[%clk
0:02:12.5]} 22... b3 {[%clk 0:01:52.5]} 23. Qxb3 {[%clk 0:02:09.6]} 23... Rb8
{[%clk 0:01:52.7]} 24. Qc4 {[%clk 0:01:59.1]} 24... Rxb2 {[%clk 0:01:51.4]} 25.
Rac1 {[%clk 0:01:55.9]} 25... Rb5 {[%clk 0:01:34.7]} 26. Bd2 {[%clk 0:01:50.4]}
26... Bb2 {[%clk 0:01:13.5]} 27. Rc2 {[%clk 0:01:42.8]} 27... Bxa3 {[%clk
0:01:13.3]} 28. Bf4 {[%clk 0:01:39.6]} 28... Rb4 {[%clk 0:00:59.3]} 29. Qc3
{[%clk 0:01:37.7]} 29... Rbxf4 {[%clk 0:00:48.5]} 30. gxf4 {[%clk 0:01:35.6]}
30... Rxf4 {[%clk 0:00:49.4]} 31. Qg3 {[%clk 0:01:11.3]} 31... Rf6 {[%clk
0:00:47.6]} 32. Qb8+ {[%clk 0:00:51.1]} 32... Kf7 {[%clk 0:00:32.3]} 33. Qa7+
{[%clk 0:00:50.8]} 33... Kg6 {[%clk 0:00:08.9]} 34. Rd7 {[%clk 0:00:49.6]} 34...
Kf5 {[%clk 0:00:02.7]} 35. f3 {[%clk 0:00:47.5]} 35... Qb5 {[%clk 0:00:02.7]}
36. Rcd2 {[%clk 0:00:43.9]} 36... Rg6+ {[%clk 0:00:02.7]} 37. Kf2 {[%clk
0:00:43.1]} 37... Bc1 {[%clk 0:00:02.3]} 38. Rf7+ {[%clk 0:00:41]} 38... Kg5
{[%clk 0:00:02.2]} 39. Qe7+ {[%clk 0:00:38.6]} 39... Kh5 {[%clk 0:00:01.7]} 40.
Rd3 {[%clk 0:00:35]} 1-0

[Event "*** SCC Grand Prix: Titled Tuesday Blitz"]
[Site "Chess.com"]
[Date "2020.08.04"]
[Round "7"]
[White "GM_LOADING"]
[Black "tlomigtlis"]
[Result "1-0"]
[WhiteElo "2619"]
[BlackElo "2421"]
[TimeControl "180+1"]
[EndTime "15:00:59 PDT"]
[Termination "GM_LOADING won by checkmate"]

1. d4 {[%clk 0:03:00.9]} 1... d5 {[%clk 0:02:47.6]} 2. Nf3 {[%clk 0:03:00.5]}
2... Nf6 {[%clk 0:02:46]} 3. Bf4 {[%clk 0:02:59.9]} 3... g6 {[%clk 0:02:45.2]}
4. e3 {[%clk 0:02:59.2]} 4... Bg7 {[%clk 0:02:45.3]} 5. c4 {[%clk 0:02:59.7]}
5... O-O {[%clk 0:02:44.8]} 6. Nc3 {[%clk 0:03:00.3]} 6... Nc6 {[%clk
0:02:39.7]} 7. Rc1 {[%clk 0:02:57.8]} 7... Re8 {[%clk 0:02:36]} 8. Be2 {[%clk
0:02:54.5]} 8... Be6 {[%clk 0:02:27.4]} 9. b3 {[%clk 0:02:44.7]} 9... Bf5 {[%clk
0:02:12.5]} 10. O-O {[%clk 0:02:42.9]} 10... a5 {[%clk 0:01:56.3]} 11. h3 {[%clk
0:02:39.7]} 11... Be6 {[%clk 0:01:26.2]} 12. Ne5 {[%clk 0:02:29.9]} 12... dxc4
{[%clk 0:00:57.2]} 13. Nxc6 {[%clk 0:02:25.4]} 13... bxc6 {[%clk 0:00:58.1]} 14.
bxc4 {[%clk 0:02:25.7]} 14... Bc8 {[%clk 0:00:50.3]} 15. Qa4 {[%clk 0:02:24.5]}
15... Bd7 {[%clk 0:00:48]} 16. Qa3 {[%clk 0:02:04.9]} 16... Bf8 {[%clk
0:00:45.6]} 17. Qb2 {[%clk 0:02:04.2]} 17... c5 {[%clk 0:00:45.4]} 18. dxc5
{[%clk 0:02:02]} 18... e5 {[%clk 0:00:39.2]} 19. Bg3 {[%clk 0:02:02]} 19... Bxc5
{[%clk 0:00:38.4]} 20. Rfd1 {[%clk 0:02:02.5]} 20... Qe7 {[%clk 0:00:35.7]} 21.
Qb7 {[%clk 0:02:00.9]} 21... Reb8 {[%clk 0:00:30.9]} 22. Qxc7 {[%clk 0:01:57.9]}
22... Bf5 {[%clk 0:00:21.6]} 23. Qxe7 {[%clk 0:01:56.6]} 23... Bxe7 {[%clk
0:00:22.5]} 24. Bxe5 {[%clk 0:01:57.1]} 24... Rb2 {[%clk 0:00:20.7]} 25. Nd5
{[%clk 0:01:57.3]} 25... Nxd5 {[%clk 0:00:11.2]} 26. Bxb2 {[%clk 0:01:57]} 26...
Nb4 {[%clk 0:00:12.1]} 27. a3 {[%clk 0:01:54.5]} 27... Nc6 {[%clk 0:00:12.5]}
28. Bf3 {[%clk 0:01:54.7]} 28... Rc8 {[%clk 0:00:12.9]} 29. Rd5 {[%clk
0:01:52.7]} 29... Be6 {[%clk 0:00:12.2]} 30. Rb5 {[%clk 0:01:51.4]} 30... a4
{[%clk 0:00:09.4]} 31. Rb7 {[%clk 0:01:50.5]} 31... Bc5 {[%clk 0:00:06.8]} 32.
Rb5 {[%clk 0:01:48.5]} 32... Be7 {[%clk 0:00:06.5]} 33. c5 {[%clk 0:01:48.8]}
33... f5 {[%clk 0:00:06.2]} 34. Rb6 {[%clk 0:01:48.3]} 34... Nd8 {[%clk
0:00:04.5]} 35. c6 {[%clk 0:01:43.4]} 35... Bd6 {[%clk 0:00:04.8]} 36. c7 {[%clk
0:01:41.4]} 36... Bxc7 {[%clk 0:00:02.4]} 37. Rxe6 {[%clk 0:01:41]} 37... Nxe6
{[%clk 0:00:02.3]} 38. Bd5 {[%clk 0:01:41.4]} 38... Kf7 {[%clk 0:00:02.2]} 39.
Be5 {[%clk 0:01:39.9]} 39... Bxe5 {[%clk 0:00:01.3]} 40. Rxc8 {[%clk 0:01:40.3]}
40... Kf6 {[%clk 0:00:02.2]} 41. Bxe6 {[%clk 0:01:40.1]} 41... Kxe6 {[%clk
0:00:02.2]} 42. Ra8 {[%clk 0:01:41]} 42... Bb2 {[%clk 0:00:02]} 43. Rxa4 {[%clk
0:01:41.9]} 43... Kd5 {[%clk 0:00:02.7]} 44. Ra7 {[%clk 0:01:42.2]} 44... Kc5
{[%clk 0:00:02.6]} 45. Rxh7 {[%clk 0:01:41.5]} 45... Bxa3 {[%clk 0:00:02.9]} 46.
Rh6 {[%clk 0:01:41.6]} 46... Bb2 {[%clk 0:00:03.8]} 47. Rxg6 {[%clk 0:01:42.5]}
47... Kd5 {[%clk 0:00:04.7]} 48. h4 {[%clk 0:01:42.6]} 48... Be5 {[%clk
0:00:05.1]} 49. h5 {[%clk 0:01:42.8]} 49... Ke4 {[%clk 0:00:06]} 50. h6 {[%clk
0:01:41.9]} 50... f4 {[%clk 0:00:06.1]} 51. exf4 {[%clk 0:01:42.1]} 51... Kxf4
{[%clk 0:00:07]} 52. g4 {[%clk 0:01:40.9]} 52... Kf3 {[%clk 0:00:06.8]} 53. h7
{[%clk 0:01:40.6]} 53... Bd4 {[%clk 0:00:07.1]} 54. Kh2 {[%clk 0:01:40.9]} 54...
Kxf2 {[%clk 0:00:06.4]} 55. Kh3 {[%clk 0:01:41.2]} 55... Kf3 {[%clk 0:00:06.8]}
56. Rg8 {[%clk 0:01:41.7]} 56... Kf4 {[%clk 0:00:06.8]} 57. h8=Q {[%clk
0:01:42.6]} 57... Bxh8 {[%clk 0:00:07.1]} 58. Rxh8 {[%clk 0:01:43.5]} 58... Kg5
{[%clk 0:00:07.8]} 59. Rf8 {[%clk 0:01:43.7]} 59... Kg6 {[%clk 0:00:07.7]} 60.
Kh4 {[%clk 0:01:44.2]} 60... Kh6 {[%clk 0:00:07.8]} 61. Rb8 {[%clk 0:01:43.3]}
61... Kg7 {[%clk 0:00:08.3]} 62. g5 {[%clk 0:01:42.6]} 62... Kg6 {[%clk
0:00:09.2]} 63. Kg4 {[%clk 0:01:42.9]} 63... Kg7 {[%clk 0:00:09.2]} 64. Kf5
{[%clk 0:01:43.8]} 64... Kf7 {[%clk 0:00:09.4]} 65. Rb7+ {[%clk 0:01:44.3]}
65... Kf8 {[%clk 0:00:08.7]} 66. Kf6 {[%clk 0:01:44.8]} 66... Kg8 {[%clk
0:00:08.2]} 67. g6 {[%clk 0:01:45.2]} 67... Kf8 {[%clk 0:00:08.3]} 68. Rb8#
{[%clk 0:01:46.1]} 1-0

[Event "*** SCC Grand Prix: Titled Tuesday Blitz"]
[Site "Chess.com"]
[Date "2020.08.04"]
[Round "7"]
[White "arminmusovic"]
[Black "mapleaff"]
[Result "0-1"]
[WhiteElo "2491"]
[BlackElo "2405"]
[TimeControl "180+1"]
[EndTime "15:01:03 PDT"]
[Termination "mapleaff won on time"]

1. a3 {[%clk 0:03:00.9]} 1... e6 {[%clk 0:02:59.4]} 2. Nc3 {[%clk 0:03:01.8]}
2... b6 {[%clk 0:02:59]} 3. e4 {[%clk 0:03:02.2]} 3... Bb7 {[%clk 0:02:59.2]} 4.
d4 {[%clk 0:03:02.5]} 4... g6 {[%clk 0:02:57.2]} 5. Nf3 {[%clk 0:03:00.9]} 5...
Bg7 {[%clk 0:02:56.8]} 6. Bg5 {[%clk 0:02:59.6]} 6... Ne7 {[%clk 0:02:55.6]} 7.
Qd2 {[%clk 0:02:58.5]} 7... h6 {[%clk 0:02:54.8]} 8. Be3 {[%clk 0:02:58.3]} 8...
d6 {[%clk 0:02:54.5]} 9. O-O-O {[%clk 0:02:58]} 9... Nd7 {[%clk 0:02:54.5]} 10.
h4 {[%clk 0:02:56.3]} 10... a6 {[%clk 0:02:51.6]} 11. Bc4 {[%clk 0:02:48.4]}
11... b5 {[%clk 0:02:50.8]} 12. Ba2 {[%clk 0:02:48.9]} 12... Nb6 {[%clk
0:02:49.7]} 13. Kb1 {[%clk 0:02:41.9]} 13... Qc8 {[%clk 0:02:28.9]} 14. Ne1
{[%clk 0:01:47.8]} 14... Nc4 {[%clk 0:02:24.6]} 15. Bxc4 {[%clk 0:01:32.2]}
15... bxc4 {[%clk 0:02:25.4]} 16. d5 {[%clk 0:01:28.4]} 16... exd5 {[%clk
0:02:00.4]} 17. exd5 {[%clk 0:01:24.8]} 17... Nf5 {[%clk 0:01:45.9]} 18. Nf3
{[%clk 0:01:04]} 18... O-O {[%clk 0:01:42.1]} 19. g4 {[%clk 0:00:57.9]} 19...
Nxe3 {[%clk 0:01:41.5]} 20. fxe3 {[%clk 0:00:57.3]} 20... c6 {[%clk 0:01:34.7]}
21. h5 {[%clk 0:00:30.7]} 21... g5 {[%clk 0:01:33.2]} 22. Ne4 {[%clk 0:00:13.5]}
22... cxd5 {[%clk 0:01:26.8]} 23. Nxd6 {[%clk 0:00:13.3]} 23... Qc6 {[%clk
0:01:26.8]} 24. Nxb7 {[%clk 0:00:13.3]} 24... Qxb7 {[%clk 0:01:26.9]} 25. c3
{[%clk 0:00:13.1]} 25... Rab8 {[%clk 0:01:22.7]} 26. Rh2 {[%clk 0:00:13.5]}
26... Qb3 {[%clk 0:01:19.1]} 27. Nd4 {[%clk 0:00:11.4]} 27... Qxa3 {[%clk
0:01:15.5]} 28. Rf1 {[%clk 0:00:11.2]} 28... Rb7 {[%clk 0:01:07.9]} 29. Qc1
{[%clk 0:00:07.4]} 29... Rfb8 {[%clk 0:01:01.5]} 30. Rff2 {[%clk 0:00:07.8]}
30... Qc5 {[%clk 0:00:41.8]} 31. Qd1 {[%clk 0:00:03.7]} 31... a5 {[%clk
0:00:37.7]} 32. Rc2 {[%clk 0:00:03.1]} 32... a4 {[%clk 0:00:37.3]} 33. Qe1
{[%clk 0:00:02.2]} 33... a3 {[%clk 0:00:36.7]} 34. Qc1 {[%clk 0:00:02.7]} 34...
Be5 {[%clk 0:00:31]} 0-1

[Event "*** SCC Grand Prix: Titled Tuesday Blitz"]
[Site "Chess.com"]
[Date "2020.08.04"]
[Round "7"]
[White "crescentmoon2411"]
[Black "csati17"]
[Result "1-0"]
[WhiteElo "2777"]
[BlackElo "2601"]
[TimeControl "180+1"]
[EndTime "15:01:07 PDT"]
[Termination "crescentmoon2411 won by resignation"]

1. c4 {[%clk 0:03:00.9]} 1... e6 {[%clk 0:02:59.3]} 2. Nc3 {[%clk 0:03:01]} 2...
d5 {[%clk 0:02:59.5]} 3. d4 {[%clk 0:03:01.2]} 3... Nf6 {[%clk 0:02:58.3]} 4.
cxd5 {[%clk 0:03:01.4]} 4... exd5 {[%clk 0:02:59.2]} 5. Bg5 {[%clk 0:03:01.8]}
5... Be7 {[%clk 0:02:59.7]} 6. e3 {[%clk 0:02:59.9]} 6... c6 {[%clk 0:02:59.9]}
7. Bd3 {[%clk 0:02:59.1]} 7... Nbd7 {[%clk 0:02:57.1]} 8. Qc2 {[%clk 0:02:58.5]}
8... g6 {[%clk 0:02:57.2]} 9. Nf3 {[%clk 0:02:53.2]} 9... Nh5 {[%clk 0:02:57.2]}
10. Bxe7 {[%clk 0:02:51.9]} 10... Qxe7 {[%clk 0:02:58.1]} 11. O-O-O {[%clk
0:02:49.5]} 11... f5 {[%clk 0:02:55]} 12. h3 {[%clk 0:02:47.2]} 12... Nhf6
{[%clk 0:02:52.6]} 13. g4 {[%clk 0:02:45.6]} 13... Ne4 {[%clk 0:02:52.8]} 14.
gxf5 {[%clk 0:02:41.9]} 14... gxf5 {[%clk 0:02:53.7]} 15. Rdg1 {[%clk 0:02:42]}
15... Qf7 {[%clk 0:02:10]} 16. Ng5 {[%clk 0:02:38.4]} 16... Nxg5 {[%clk
0:02:09.9]} 17. Rxg5 {[%clk 0:02:38.8]} 17... Rf8 {[%clk 0:01:46.5]} 18. Bxf5
{[%clk 0:02:27.7]} 18... Nf6 {[%clk 0:01:38.2]} 19. Bxc8 {[%clk 0:02:23.5]}
19... Rxc8 {[%clk 0:01:39.1]} 20. Rhg1 {[%clk 0:02:23.5]} 20... Rc7 {[%clk
0:01:36.9]} 21. Qf5 {[%clk 0:02:10.8]} 21... Kd8 {[%clk 0:01:34]} 22. R1g2
{[%clk 0:01:15.5]} 22... b5 {[%clk 0:00:38.2]} 23. Qe5 {[%clk 0:01:04.4]} 23...
Ne8 {[%clk 0:00:24.2]} 24. Ne2 {[%clk 0:00:59.6]} 24... Kc8 {[%clk 0:00:17.8]}
25. Nf4 {[%clk 0:00:59.1]} 25... Re7 {[%clk 0:00:18]} 26. Rf5 {[%clk 0:00:53.5]}
26... Qxf5 {[%clk 0:00:08.7]} 27. Qxe7 {[%clk 0:00:53.1]} 27... Qf7 {[%clk
0:00:03.1]} 28. Qxf7 {[%clk 0:00:44.9]} 28... Rxf7 {[%clk 0:00:04]} 29. Rg8
{[%clk 0:00:45.2]} 29... Kd7 {[%clk 0:00:04]} 30. Nd3 {[%clk 0:00:45.5]} 30...
Ke7 {[%clk 0:00:03.4]} 31. f4 {[%clk 0:00:40.9]} 31... Nf6 {[%clk 0:00:02.3]}
32. Ra8 {[%clk 0:00:39.8]} 32... Kd6 {[%clk 0:00:01.7]} 33. Ne5 {[%clk
0:00:39.6]} 33... Rg7 {[%clk 0:00:02]} 34. Rc8 {[%clk 0:00:32.3]} 34... Ke6
{[%clk 0:00:02.5]} 35. Rxc6+ {[%clk 0:00:27.7]} 35... Kf5 {[%clk 0:00:03]} 36.
Nf3 {[%clk 0:00:16.5]} 36... Ne4 {[%clk 0:00:02.9]} 1-0